fUSD/lending_fUSD_20260423
["ID","MTS","AMOUNT","RATE_DAILY","PERIOD"]
[421044964,1776951103824,-10000.0,0.000414,120]
[421044965,1776951103900,-825.0,0.00041412,120]
[421044966,1776951103976,-300.0,0.0004149,120]
[421044967,1776951104050,-300.0,0.0004149,120]
[421044968,1776951104125,-3065850.31824691,0.000415,120]
[421044969,1776951104201,-5000000.0,0.000415,120]
[421044970,1776951104280,-5000000.0,0.000415,120]
[421044971,1776951104354,-1000.0,0.000415,120]
[421044972,1776951104426,-153.0,0.000415,120]
[421044973,1776951104502,-2763.29526754,0.000415,120]
[421044974,1776951104576,-661.70949948,0.000415,120]
[421044975,1776951104652,-250.0,0.000415,120]
[421044976,1776951104728,-242.46,0.000415,120]
[421044977,1776951104802,-5000.0,0.000415,120]
[421044978,1776951104875,-187.0,0.000415,120]
[421044979,1776951104954,-1332.75,0.00041528,120]
[421044980,1776951105031,-646.12225466,0.00041528,120]
[421044981,1776951105105,-499.02,0.0004153,120]
[421044982,1776951105184,-500.0,0.000416,120]
[421044983,1776951105262,-250.0,0.000416,120]
[421044984,1776951105340,-375.60144414,0.000416,120]
[421044985,1776951105414,-1332.75,0.00041628,120]
[421044986,1776951105490,-500.0,0.00041636,120]
[421044987,1776951105566,-2000.0,0.00041644,120]
[421044988,1776951105644,-213.44974071,0.0004168,120]
[421044989,1776951105721,-500.0,0.000417,120]
[421044990,1776951105797,-178.0,0.000417,120]
[421044991,1776951105870,-250.0,0.000417,120]
[421044992,1776951105949,-1319.34,0.0004174,120]
[421044993,1776951106027,-377763.91194768,0.0004179,120]
[421044994,1776951106107,-500.0,0.000418,120]
[421044995,1776951106189,-1633.42,0.000418,120]
[421044996,1776951106273,-500.0,0.000418,120]
[421044997,1776951106358,-406.17,0.00041815,120]
[421044998,1776951106439,-1332.75,0.00041828,120]
[421044999,1776951106520,-500.0,0.0004185,120]
[421045000,1776951106602,-1103.0,0.00041861,120]
[421045001,1776951106682,-1186.49104058,0.00041877,120]
[421045002,1776951106761,-1225.82209686,0.0004188,120]
[421045003,1776951106838,-1000.0,0.0004188,120]
[421045004,1776951106917,-1000.0,0.0004188,120]
[421045005,1776951106997,-1000.0,0.0004188,120]
[421045006,1776951107077,-1000.0,0.0004188,120]
[421045007,1776951107157,-1000.0,0.0004188,120]
[421045008,1776951107243,-1000.0,0.0004188,120]
[421045009,1776951107326,-1000.0,0.0004188,120]
[421045010,1776951107403,-500.0,0.00041883,120]
[421045011,1776951107480,-1783.0,0.00041888,120]
[421045012,1776951107557,-1783.0,0.00041888,120]
[421045013,1776951107634,-275.1,0.00041898,120]
[421045014,1776951107713,-1783.0,0.00041898,120]
[421045015,1776951107792,-1783.0,0.00041898,120]
[421045016,1776951107868,-1783.0,0.00041898,120]
[421045017,1776951107943,-1783.44,0.00041898,120]
[421045018,1776951108018,-500.0,0.000419,120]
[421045019,1776951108094,-123668.43646494,0.000419,120]
[421045020,1776951108171,-1864.23379912,0.000419,120]
[421045021,1776951108247,-500.0,0.000419,120]
[421045022,1776951108324,-150.5,0.00041908,120]
[421045023,1776951108399,-1783.0,0.00041908,120]
[421045024,1776951108472,-1783.0,0.00041908,120]
[421045025,1776951108548,-1783.0,0.00041908,120]
[421045026,1776951108624,-1783.0,0.00041908,120]
[421045027,1776951108698,-2000.0,0.00041918,120]
[421045028,1776951108771,-1332.75,0.00041928,120]
[421045029,1776951108843,-2012.34,0.00041952,120]
[421045030,1776951108916,-2012.34,0.00041952,120]
[421045031,1776951108990,-2012.34,0.00041952,120]
[421045032,1776951109062,-2012.34,0.00041952,120]
[421045033,1776951109133,-2012.34,0.00041952,120]
[421045034,1776951109206,-2012.34,0.00041952,120]
[421045035,1776951109280,-2012.34,0.00041952,120]
[421045036,1776951109355,-2012.34,0.00041952,120]
[421045037,1776951109428,-2012.34,0.00041952,120]
[421045038,1776951109503,-2012.34,0.00041952,120]
[421045039,1776951109577,-2012.34,0.00041952,120]
[421045040,1776951109650,-2012.34,0.00041952,120]
[421045041,1776951109722,-2012.34,0.00041952,120]
[421045042,1776951109794,-2012.34,0.00041952,120]
[421045043,1776951109866,-2012.34,0.00041952,120]
[421045044,1776951109939,-2012.34,0.00041952,120]
[421045045,1776951110013,-2012.34,0.00041952,120]
[421045046,1776951110089,-2012.34,0.00041952,120]
[421045047,1776951110171,-2012.34,0.00041952,120]
[421045048,1776951110246,-2012.34,0.00041952,120]
[421045049,1776951110324,-2012.34,0.00041952,120]
[421045050,1776951110399,-2012.34,0.00041952,120]
[421045051,1776951110475,-2012.34,0.00041952,120]
[421045052,1776951110555,-2012.34,0.00041952,120]
[421045053,1776951110631,-2012.34,0.00041952,120]
[421045054,1776951110706,-2012.34,0.00041952,120]
[421045055,1776951110781,-232.96,0.00041952,120]
[421045056,1776951110852,-1950.11490508,0.0004198,120]
[421045057,1776951110929,-161.0,0.00042,120]
[421045058,1776951111007,-815.12567344,0.00042,120]
[421045059,1776951111084,-296.69784228,0.00042,120]
[421045060,1776951111160,-1100.25154185,0.00042,120]
[421045061,1776951111237,-378.53409526,0.00042,120]
[421045062,1776951111316,-341.38366066,0.00042,120]
[421045063,1776951111392,-983.17275077,0.00042,120]
[421045064,1776951111466,-1000.0,0.00042,120]
[421045065,1776951111545,-1000.0,0.00042,120]
[421045066,1776951111622,-500.0,0.00042,120]
[421045067,1776951112201,-500.0,0.00042,120]
[421045068,1776951112281,-1105.0,0.00042,120]
[421045069,1776951112361,-490.35735931,0.00042,120]
[421045070,1776951112437,-500.0,0.00042,120]
[421045071,1776951112517,-1000.0,0.00042,120]
[421045072,1776951112596,-2956.27755989,0.00042,120]
[421045073,1776951112689,-906.03410768,0.00042,120]
[421045074,1776951112770,-241.0,0.00042,120]
[421045075,1776951112847,-400.0,0.00042,120]
[421045076,1776951112926,-660.0,0.00042,120]
[421045077,1776951113006,-2000.0,0.00042,120]
[421045078,1776951113086,-2000.0,0.00042,120]
[421045079,1776951113164,-2000.0,0.00042,120]
[421045080,1776951113243,-2404431.91521953,0.00042,120]
[421045081,1776951113323,-1000.0,0.00042,120]
[421045082,1776951113399,-1000.0,0.00042,120]
[421045083,1776951113474,-1000.0,0.00042,120]
[421045084,1776951113550,-10000.0,0.00042,120]
[421045085,1776951113627,-3597.75622192,0.00042,120]
[421045086,1776951113702,-1026.22868453,0.00042,120]
[421045087,1776951113779,-264.0,0.00042,120]
[421045088,1776951113854,-42952.19350571,0.00042,120]
[421045089,1776951113940,-100000.0,0.00042,120]
[421045090,1776951114018,-100000.0,0.00042,120]
[421045091,1776951114095,-100000.0,0.00042,120]
[421045092,1776951114173,-100000.0,0.00042,120]
[421045093,1776951114253,-100000.0,0.00042,120]
[421045094,1776951114334,-100000.0,0.00042,120]
[421045095,1776951114412,-100000.0,0.00042,120]
[421045096,1776951114490,-100000.0,0.00042,120]
[421045097,1776951114568,-100000.0,0.00042,120]
[421045098,1776951114645,-10821.88102156,0.00042,120]
[421045099,1776951114721,-1233.95394472,0.00042,120]
[421045100,1776951114795,-51153.28873685,0.00042,120]
[421045101,1776951114869,-24212.797,0.00042,120]
[421045102,1776951114946,-3730.21488763,0.00042,120]
[421045103,1776951115020,-1029.15215306,0.00042,120]
[421045104,1776951115098,-151310.9937839,0.00042,120]
[421045105,1776951115172,-416.39683021,0.00042,120]
[421045106,1776951115248,-225.91702794,0.00042,120]
[421045107,1776951115324,-1534.45400346,0.00042,120]
[421045108,1776951115399,-1335.21558297,0.00042,120]
[421045109,1776951115479,-4286.3,0.00042,120]
[421045110,1776951115560,-4000.0,0.00042,120]
[421045111,1776951115637,-201448.33530985,0.00042,120]
[421045112,1776951115711,-1777.57,0.00042,120]
[421045113,1776951115788,-32000.0,0.00042,120]
[421045114,1776951115865,-229.97187037,0.00042,120]
[421045115,1776951115942,-187.0,0.00042,120]
[421045116,1776951116021,-500.0,0.000421,120]
[421045117,1776951116096,-50000.0,0.000421,120]
[421045118,1776951116173,-50000.0,0.0004211,120]
[421045119,1776951116252,-50000.0,0.0004212,120]
[421045120,1776951116331,-4044.93622623,0.00042121,120]
[421045121,1776951116412,-1332.75,0.00042128,120]
[421045122,1776951116490,-1346.49,0.00042128,120]
[421045123,1776951116565,-342.0,0.0004213,120]
[421045124,1776951116641,-50000.0,0.0004213,120]
[421045125,1776951116724,-50000.0,0.0004213,120]
[421045126,1776951116802,-500.0,0.0004213,120]
[421045127,1776951116879,-50000.0,0.0004214,120]
[421045128,1776951116957,-50000.0,0.0004214,120]
[421045129,1776951117036,-31440.0,0.0004215,120]
[421045130,1776951117118,-202.0565731,0.00042184,120]
[421045131,1776951117198,-2000.0,0.00042192,120]
[421045132,1776951117282,-153.0,0.000422,120]
[421045133,1776951117362,-185.44306568,0.000422,120]
[421045134,1776951117438,-178.0,0.000422,120]
[421045135,1776951117516,-30000.000001,0.000422,120]
[421045136,1776951117596,-229.94,0.00042205,120]
[421045137,1776951117674,-23935.0,0.0004222,120]
[421045138,1776951117753,-1332.75,0.00042228,120]
[421045139,1776951117829,-1346.49,0.00042228,120]
[421045140,1776951117905,-250.0,0.00042247,120]
[421045141,1776951117981,-4999.999999,0.000423,120]
[421045142,1776951118065,-1882.12,0.000423,120]
[421045143,1776951118142,-939.91,0.000423,120]
[421045144,1776951118223,-841.83,0.000423,120]
[421045145,1776951118304,-420.03,0.000423,120]
[421045146,1776951118387,-1332.75,0.00042328,120]
[421045147,1776951118466,-1346.49,0.00042328,120]
[421045148,1776951118549,-500.0,0.00042376,120]
[421045149,1776951118632,-1624.543,0.000424,120]
[421045150,1776951118716,-1624.54,0.000424,120]
[421045151,1776951118800,-1205.9128,0.000424,120]
[421045152,1776951118879,-1323.923,0.000424,120]
[421045153,1776951118960,-10000.0,0.000424,120]
[421045154,1776951119040,-236.21,0.00042405,120]
[421045155,1776951119120,-186.01,0.00042405,120]
[421045156,1776951119198,-2000.0,0.00042405,120]
[421045157,1776951119278,-1840.74,0.00042405,120]
[421045158,1776951119358,-250.0,0.00042411,120]
[421045159,1776951119442,-1332.75,0.00042428,120]
[421045160,1776951119521,-618.0,0.00042466,120]
[421045161,1776951119603,-505.0,0.00042466,120]
[421045162,1776951119684,-150.0,0.00042466,120]
[421045163,1776951119762,-167.0,0.00042466,120]
[421045164,1776951119841,-526.0,0.00042466,120]
[421045165,1776951119922,-224.0,0.00042466,120]
[421045166,1776951120004,-629.0,0.00042466,120]
[421045167,1776951120087,-549.0,0.00042466,120]
[421045168,1776951120170,-2000.0,0.00042466,120]
[421045169,1776951120254,-585.989678,0.00042466,120]
[421045170,1776951120338,-585.989678,0.00042466,120]
[421045171,1776951121040,-585.989678,0.00042466,120]
[421045172,1776951121122,-585.989678,0.00042466,120]
[421045173,1776951121211,-585.989678,0.00042466,120]
[421045174,1776951121297,-585.989678,0.00042466,120]
[421045175,1776951121382,-585.989678,0.00042466,120]
[421045176,1776951121465,-585.989678,0.00042466,120]
[421045177,1776951121549,-585.989678,0.00042466,120]
[421045178,1776951121632,-585.989678,0.00042466,120]
[421045179,1776951121714,-585.989678,0.00042466,120]
[421045180,1776951121796,-585.989678,0.00042466,120]
[421045181,1776951121874,-585.989678,0.00042466,120]
[421045182,1776951121954,-585.989678,0.00042466,120]
[421045183,1776951122036,-585.989678,0.00042466,120]
[421045184,1776951122114,-585.989678,0.00042466,120]
[421045185,1776951122192,-585.989678,0.00042466,120]
[421045186,1776951122274,-585.989678,0.00042466,120]
[421045187,1776951122356,-585.989678,0.00042466,120]
[421045188,1776951122436,-585.989678,0.00042466,120]
[421045189,1776951122516,-402.292177,0.00042466,120]
[421045190,1776951122598,-402.292177,0.00042466,120]
[421045191,1776951122676,-402.292177,0.00042466,120]
[421045192,1776951122757,-402.292177,0.00042466,120]
[421045193,1776951122836,-402.292177,0.00042466,120]
[421045194,1776951122917,-402.292177,0.00042466,120]
[421045195,1776951122997,-402.292177,0.00042466,120]
[421045196,1776951123077,-402.292177,0.00042466,120]
[421045197,1776951123155,-402.292177,0.00042466,120]
[421045198,1776951123235,-402.292177,0.00042466,120]
[421045199,1776951123314,-402.292177,0.00042466,120]
[421045200,1776951123392,-402.292177,0.00042466,120]
[421045201,1776951123472,-402.292177,0.00042466,120]
[421045202,1776951123551,-402.292177,0.00042466,120]
[421045203,1776951123631,-402.292177,0.00042466,120]
[421045204,1776951123709,-402.292177,0.00042466,120]
[421045205,1776951123787,-402.292177,0.00042466,120]
[421045206,1776951123866,-402.292177,0.00042466,120]
[421045207,1776951123945,-402.292177,0.00042466,120]
[421045208,1776951124022,-402.292184,0.00042466,120]
[421045209,1776951124101,-157.18151523,0.00042466,120]
[421045210,1776951124182,-157.1815152,0.00042466,120]
[421045211,1776951124263,-617.0,0.00042466,120]
[421045212,1776951124345,-617.0,0.00042466,120]
[421045213,1776951124427,-617.0,0.00042466,120]
[421045214,1776951124505,-617.0,0.00042466,120]
[421045215,1776951124583,-617.0,0.00042466,120]
[421045216,1776951124661,-617.0,0.00042466,120]
[421045217,1776951124743,-617.0,0.00042466,120]
[421045218,1776951124825,-617.0,0.00042466,120]
[421045219,1776951124907,-617.0,0.00042466,120]
[421045220,1776951124987,-617.0,0.00042466,120]
[421045221,1776951125069,-617.0,0.00042466,120]
[421045222,1776951125148,-617.0,0.00042466,120]
[421045223,1776951125228,-617.0,0.00042466,120]
[421045224,1776951125312,-617.0,0.00042466,120]
[421045225,1776951125395,-617.0,0.00042466,120]
[421045226,1776951125475,-617.0,0.00042466,120]
[421045227,1776951125555,-617.0,0.00042466,120]
[421045228,1776951125635,-617.0,0.00042466,120]
[421045229,1776951125717,-617.0,0.00042466,120]
[421045230,1776951125798,-617.0,0.00042466,120]
[421045231,1776951125881,-617.0,0.00042466,120]
[421045232,1776951125967,-617.0,0.00042466,120]
[421045233,1776951126054,-617.0,0.00042466,120]
[421045234,1776951126141,-631.83424918,0.00042466,120]
[421045235,1776951126223,-1296.66588954,0.0004247,120]
[421045236,1776951126305,-3251.07212536,0.00042475,120]
[421045237,1776951126388,-2564.12416548,0.00042495,120]
[421045238,1776951126472,-1000.0,0.000425,120]
[421045239,1776951126557,-1000.0,0.000425,120]
[421045240,1776951126641,-2000.0,0.000425,120]
[421045241,1776951126727,-2000.0,0.000425,120]
[421045242,1776951126809,-1000.0,0.000425,120]
[421045243,1776951126894,-10050.0,0.000425,120]
[421045244,1776951126981,-1655.29094377,0.000425,120]
[421045245,1776951127066,-4152.1268887,0.000425,120]
[421045246,1776951127151,-68633.30464138,0.000425,120]
[421045247,1776951127238,-834.71196178,0.000425,120]
[421045248,1776951127325,-187.0,0.000425,120]
[421045249,1776951127414,-1788.21737575,0.000425,120]
[421045250,1776951127503,-6000.0,0.000425,120]
[421045251,1776951127597,-188.06067303,0.00042512,120]
[421045252,1776951127689,-189.4731676,0.00042513,120]
[421045253,1776951127778,-6021.28107854,0.00042515,120]
[421045254,1776951127865,-250.0,0.00042521,120]
[421045255,1776951127956,-1332.75,0.00042528,120]
[421045256,1776951128045,-1346.49,0.00042528,120]
[421045257,1776951128130,-1726.5106036,0.0004253,120]
[421045258,1776951128215,-211.79745521,0.00042537,120]
[421045259,1776951128302,-35126.47,0.00042546,120]
[421045260,1776951128387,-51660.94010002,0.000426,120]
[421045261,1776951128476,-1240.39452064,0.00042609,120]
[421045262,1776951128563,-500.0,0.00042623,120]
[421045263,1776951128648,-1332.75,0.00042628,120]
[421045264,1776951128737,-1346.49,0.00042628,120]
[421045265,1776951128823,-250.0,0.0004263,120]
[421045266,1776951128908,-5867.97291784,0.00042635,120]
[421045267,1776951128995,-1319.34,0.0004264,120]
[421045268,1776951129081,-12590.0,0.0004265,120]
[421045269,1776951129164,-1103.0,0.0004268,120]
[421045270,1776951129254,-250.0,0.00042685,120]
[421045271,1776951129339,-220.67480962,0.00042691,120]
[421045272,1776951129428,-10000.0,0.000427,120]
[421045273,1776951129512,-292.79,0.0004272,120]
[421045274,1776951129597,-180.1643133,0.00042725,120]
[421045275,1776951130043,-1332.75,0.00042728,120]
[421045276,1776951130172,-1346.49,0.00042728,120]
[421045277,1776951130255,-466422.5216283,0.00042729,120]
[421045278,1776951130338,-150.5,0.0004273,120]
[421045279,1776951130421,-217.41330129,0.0004273,120]
[421045280,1776951130507,-1089.86666514,0.00042732,120]
[421045281,1776951130594,-1194.86069669,0.00042735,120]
[421045282,1776951130686,-1287.14771441,0.00042735,120]
[421045283,1776951130777,-2000.0,0.0004274,120]
[421045284,1776951130866,-250.0,0.0004274,120]
[421045285,1776951130958,-1000.0,0.0004274,120]
[421045286,1776951131045,-1000.0,0.0004274,120]
[421045287,1776951131133,-1000.0,0.0004274,120]
[421045288,1776951131219,-1000.0,0.0004274,120]
[421045289,1776951131306,-1000.0,0.0004274,120]
[421045290,1776951131392,-1000.0,0.0004274,120]
[421045291,1776951131478,-1000.0,0.0004274,120]
[421045292,1776951131565,-1000.0,0.0004274,120]
[421045293,1776951131651,-1000.0,0.0004274,120]
[421045294,1776951131739,-1000.0,0.0004274,120]
[421045295,1776951131826,-1000.0,0.0004274,120]
[421045296,1776951131914,-1000.0,0.0004274,120]
[421045297,1776951132002,-1000.0,0.0004274,120]
[421045298,1776951132090,-1000.0,0.0004274,120]
[421045299,1776951132178,-1000.0,0.0004274,120]
[421045300,1776951132271,-1000.0,0.0004274,120]
[421045301,1776951132360,-1000.0,0.0004274,120]
[421045302,1776951132452,-1000.0,0.0004274,120]
[421045303,1776951132552,-1000.0,0.0004274,120]
[421045304,1776951132642,-1000.0,0.0004274,120]
[421045305,1776951132730,-1000.0,0.0004274,120]
[421045306,1776951132817,-1000.0,0.0004274,120]
[421045307,1776951132901,-1000.0,0.0004274,120]
[421045308,1776951132988,-1000.0,0.0004274,120]
[421045309,1776951133079,-1000.0,0.0004274,120]
[421045310,1776951133168,-1000.0,0.0004274,120]
[421045311,1776951133253,-1000.0,0.0004274,120]
[421045312,1776951133339,-1000.0,0.0004274,120]
[421045313,1776951133424,-1000.0,0.0004274,120]
[421045314,1776951133510,-1000.0,0.0004274,120]
[421045315,1776951133596,-1000.0,0.0004274,120]
[421045316,1776951133687,-1000.0,0.0004274,120]
[421045317,1776951133779,-1000.0,0.0004274,120]
[421045318,1776951133862,-1000.0,0.0004274,120]
[421045319,1776951133949,-1000.0,0.0004274,120]
[421045320,1776951134033,-1000.0,0.0004274,120]
[421045321,1776951134124,-1000.0,0.0004274,120]
[421045322,1776951134223,-1000.0,0.0004274,120]
[421045323,1776951134303,-1000.0,0.0004274,120]
[421045324,1776951134369,-1000.0,0.0004274,120]
[421045325,1776951134436,-1000.0,0.0004274,120]
[421045326,1776951134499,-1000.0,0.0004274,120]
[421045327,1776951134561,-1000.0,0.0004274,120]
[421045328,1776951134624,-1000.0,0.0004274,120]
[421045329,1776951134723,-1000.0,0.0004274,120]
[421045330,1776951134810,-1000.0,0.0004274,120]
[421045331,1776951134895,-1000.0,0.0004274,120]
[421045332,1776951134981,-1000.0,0.0004274,120]
[421045333,1776951135069,-1000.0,0.0004274,120]
[421045334,1776951135155,-1000.0,0.0004274,120]
[421045335,1776951135241,-1000.0,0.0004274,120]
[421045336,1776951135329,-1000.0,0.0004274,120]
[421045337,1776951135397,-1000.0,0.0004274,120]
[421045338,1776951135466,-1000.0,0.0004274,120]
[421045339,1776951135527,-1000.0,0.0004274,120]
[421045340,1776951135611,-1000.0,0.0004274,120]
[421045341,1776951135695,-1000.0,0.0004274,120]
[421045342,1776951135783,-1000.0,0.0004274,120]
[421045343,1776951135869,-1000.0,0.0004274,120]
[421045344,1776951135953,-1000.0,0.0004274,120]
[421045345,1776951136035,-1000.0,0.0004274,120]
[421045346,1776951136122,-1000.0,0.0004274,120]
[421045347,1776951136209,-1000.0,0.0004274,120]
[421045348,1776951136295,-1000.0,0.0004274,120]
[421045349,1776951136379,-1000.0,0.0004274,120]
[421045350,1776951136463,-1000.0,0.0004274,120]
[421045351,1776951136551,-1000.0,0.0004274,120]
[421045352,1776951136636,-1000.0,0.0004274,120]
[421045353,1776951136722,-1000.0,0.0004274,120]
[421045354,1776951136806,-1000.0,0.0004274,120]
[421045355,1776951136889,-1000.0,0.0004274,120]
[421045356,1776951136971,-1000.0,0.0004274,120]
[421045357,1776951137053,-1000.0,0.0004274,120]
[421045358,1776951137137,-1000.0,0.0004274,120]
[421045359,1776951137222,-1000.0,0.0004274,120]
[421045360,1776951137313,-1000.0,0.0004274,120]
[421045361,1776951137398,-1000.0,0.0004274,120]
[421045362,1776951137480,-1000.0,0.0004274,120]
[421045363,1776951137567,-1000.0,0.0004274,120]
[421045364,1776951137649,-1000.0,0.0004274,120]
[421045365,1776951137732,-1000.0,0.0004274,120]
[421045366,1776951137816,-1000.0,0.0004274,120]
[421045367,1776951137897,-1000.0,0.0004274,120]
[421045368,1776951137983,-1000.0,0.0004274,120]
[421045369,1776951138070,-1000.0,0.0004274,120]
[421045370,1776951138156,-1000.0,0.0004274,120]
[421045371,1776951138242,-1000.0,0.0004274,120]
[421045372,1776951138326,-1000.0,0.0004274,120]
[421045373,1776951138409,-1484.99808416,0.0004274,120]
[421045374,1776951138490,-7116.51,0.0004275,120]
[421045375,1776951138575,-15000.0,0.0004275,120]
[421045376,1776951138656,-215.5363547,0.0004275,120]
[421045377,1776951139175,-1552.13484003,0.000428,120]
[421045378,1776951139291,-178.0,0.000428,120]
[421045379,1776951139377,-1714.54679196,0.000428,120]
[421045380,1776951139462,-21861.7514995,0.000428,120]
[421045381,1776951139545,-40000.0,0.000428,120]
[421045382,1776951139630,-1332.75,0.00042828,120]
[421045383,1776951139713,-1346.49,0.00042828,120]
[421045384,1776951139794,-300.0,0.00042849,120]
[421045385,1776951139876,-300.0,0.00042849,120]
[421045386,1776951139957,-15000.0,0.0004285,120]
[421045387,1776951140040,-213663.21722872,0.00042889,120]
[421045388,1776951140124,-800.0,0.0004289,120]
[421045389,1776951140206,-1027.77739721,0.000429,120]
[421045390,1776951140288,-228.65989573,0.000429,120]
[421045391,1776951140369,-153170.18866794,0.000429,120]
[421045392,1776951140448,-200.0,0.000429,120]
[421045393,1776951140532,-250.0,0.00042904,120]
[421045394,1776951140619,-10107.24516342,0.00042919,120]
[421045395,1776951140704,-1332.75,0.00042928,120]
[421045396,1776951140789,-1346.49,0.00042928,120]
[421045397,1776951140872,-1566.5471343,0.00042944,120]
[421045398,1776951140960,-250.0,0.00042959,120]
[421045399,1776951141046,-1000.0,0.0004297,120]
[421045400,1776951141133,-1000.0,0.0004297,120]
[421045401,1776951141219,-1000.0,0.0004297,120]
[421045402,1776951141307,-1000.0,0.0004297,120]
[421045403,1776951141395,-1000.0,0.0004297,120]
[421045404,1776951141478,-1000.0,0.0004297,120]
[421045405,1776951141561,-1000.0,0.0004297,120]
[421045406,1776951141649,-1000.0,0.0004297,120]
[421045407,1776951141733,-1000.0,0.0004297,120]
[421045408,1776951141816,-1000.0,0.0004297,120]
[421045409,1776951141899,-1049.74501021,0.00042999,120]
[421045410,1776951141982,-1199.0,0.00043,120]
[421045411,1776951142072,-3516.7949,0.00043,120]
[421045412,1776951142166,-2059.68298225,0.00043,120]
[421045413,1776951142255,-274.62224316,0.00043,120]
[421045414,1776951142343,-767.98733186,0.00043,120]
[421045415,1776951142434,-1855.14903775,0.00043,120]
[421045416,1776951142523,-2616.95694,0.00043,120]
[421045417,1776951142616,-1000.0,0.00043,120]
[421045418,1776951142710,-51047.0,0.00043,120]
[421045419,1776951142804,-5412.66,0.00043,120]
[421045420,1776951142893,-2000.0,0.00043,120]
[421045421,1776951142985,-2015.0,0.00043,120]
[421045422,1776951143075,-1000.0,0.00043,120]
[421045423,1776951143162,-700.53467325,0.00043,120]
[421045424,1776951143250,-167.7523955,0.00043,120]
[421045425,1776951143339,-1454.16597713,0.00043,120]
[421045426,1776951143427,-100000.0,0.00043,120]
[421045427,1776951143515,-1517.46663176,0.00043,120]
[421045428,1776951143609,-11271.69012063,0.00043,120]
[421045429,1776951143703,-1532.0,0.00043,120]
[421045430,1776951143791,-2048.0,0.00043,120]
[421045431,1776951143878,-100000.0,0.00043,120]
[421045432,1776951143966,-35000.0,0.00043,120]
[421045433,1776951144052,-1000.0,0.00043,120]
[421045434,1776951144133,-89045.76578365,0.00043,120]
[421045435,1776951144218,-3608.99294068,0.00043,120]
[421045436,1776951144305,-1000.0,0.00043,120]
[421045437,1776951144399,-1080.0,0.00043,120]
[421045438,1776951144484,-38845.99,0.00043,120]
[421045439,1776951144571,-2642.18144058,0.00043,120]
[421045440,1776951144657,-153.0,0.00043,120]
[421045441,1776951144746,-10000.0,0.00043,120]
[421045442,1776951144833,-1381.73608283,0.00043,120]
[421045443,1776951144921,-742.77385051,0.00043,120]
[421045444,1776951145005,-108233.79440293,0.00043,120]
[421045445,1776951145099,-3692.19644116,0.00043,120]
[421045446,1776951145189,-1018.9748643,0.00043,120]
[421045447,1776951145278,-2370.79522849,0.00043,120]
[421045448,1776951145365,-21120.8243007,0.00043,120]
[421045449,1776951145452,-5421.12,0.00043,120]
[421045450,1776951145538,-4792.43732587,0.00043,120]
[421045451,1776951145627,-3541.53732356,0.00043,120]
[421045452,1776951145714,-4156.7921288,0.00043,120]
[421045453,1776951145801,-1003.70653341,0.00043,120]
[421045454,1776951145887,-196.47569582,0.00043,120]
[421045455,1776951145975,-322.212674,0.00043,120]
[421045456,1776951146067,-362.5005936,0.00043,120]
[421045457,1776951146157,-6544.48751955,0.00043,120]
[421045458,1776951146245,-25544.83397424,0.00043,120]
[421045459,1776951146334,-192.668,0.00043,120]
[421045460,1776951146421,-2000.0,0.00043,120]
[421045461,1776951146514,-480.0,0.00043,120]
[421045462,1776951146601,-55228.0,0.00043,120]
[421045463,1776951146690,-187.0,0.00043,120]